[Event "13th Dolomiti-Forni di Sopra-A 2022"]
[Site "Forni di Sopra"]
[Date "2022.06.15"]
[Round "5.6"]
[White "Karttunen, Mika"]
[Black "Caruso, Augusto"]
[Result "1-0"]
[ECO "C02"]
[WhiteElo "2488"]
[BlackElo "2127"]
[Annotator "TA"]
[PlyCount "85"]
[EventDate "2022.06.13"]
[EventType "swiss"]
[EventCountry "ITA"]
[SourceTitle "playchess.com"]
[Source "ChessBase"]
[SourceQuality "1"]
[TimeControl "40/5400+30:1800+30"]

{[%evp 11,85,0,0,-17,-15,-52,3,7,4,0,0,-91,-56,-93,-90,-120,-106,-124,-76,-83,-68,-69,-68,-83,-79,-147,-126,-246,-245,-272,-201,-245,-216,-325,-325,-316,-287,-634,-162,-139,-22,-50,-35,-63,0,0,0,0,0,-40,-58,-45,-54,-62,-79,-64,-54,-226,199,219,302,80,240,277,289,168,152,160,803,354,297,308,1727,1735,1807,1730]} 1. e4 {[%emt 0:02:05]} e6 {[%emt 0:00:23]} 2. d4 {[%emt 0:00:08]} d5 {[%emt 0:00:04]} 3. e5 {[%emt 0:00:06]} c5 {[%emt 0:00:06]} 4. c3 {[%emt 0:00:07]} Qb6 {[%emt 0:00:21]} 5. Nf3 {[%emt 0:00:10]} Nc6 {[%emt 0:02:19]} 6. Bd3 {[%emt 0:00:25]} cxd4 {[%emt 0:00:11]} 7. O-O $1 {[%emt 0:00:29][%mdl 4] is more profitable than 7.cxd4 at the moment. C02: French: Advance Variation.} Bd7 {[%emt 0:00:12]} 8. Re1 {[%emt 0:00:20]} Nh6 {[%emt 0:03:48]} (8... Rc8 $15) 9. c4 $11 {[%emt 0:22:33] The position is equal.} dxc4 {[%emt 0:17:25]} 10. Bxc4 {[%emt 0:00:05] [#]} Nf5 $146 {[%emt 0:00:32][%cal Bh6f5,Bf5e7,Be7g6,Bg6f4,Bf4h3,Bh3g5,Bg5f3][%mdl 32]} ({Predecessor:} 10... Be7 11. Nbd2 Nf5 12. Ne4 O-O 13. a3 Rac8 14. Bd3 h6 15. b4 a6 16. Bf4 Bd8 {½-½ (107) Jones,G (2670)-Bluebaum,M (2670) Chess.com INT 2020}) 11. g4 {[%emt 0:10:00]} (11. a3 $11 {remains equal.}) 11... Nfe7 $1 $17 {[%emt 0:02:51]} 12. Nbd2 {[%emt 0:01:28]} Ng6 {[%emt 0:05:08]} 13. a3 {[%emt 0:13:21]} Be7 {[%emt 0:06:14]} 14. b4 {[%emt 0:00:59]} Rd8 {[%emt 0:02:19]} (14... Qc7 $142 $1 {Hoping for ...h5.} 15. Qe2 f6 16. exf6 gxf6 17. Bxe6 Nf4 18. Bxd7+ Qxd7) 15. Qe2 {[%emt 0:08:13][%cal Oh2h4]} h5 {[%emt 0:17:26]} (15... Nf4 $6 16. Qe4 Nh3+ 17. Kg2 $11) 16. g5 {[%emt 0:03:01]} Nf4 $36 {[%emt 0:02:42][%mdl 2048] Black is more active.} 17. Qe4 {[%emt 0:02:33]} Nh3+ {[%emt 0:03:36]} 18. Kg2 {[%emt 0:00:51]} (18. Kf1 $142 Nxg5 19. Qf4 Nxf3 20. Nxf3) 18... Nxg5 {[%emt 0:00:11]} 19. Qf4 {[%emt 0:00:22]} (19. Nxg5 $17 {is a better defense.} Bxg5 20. Nf3 Bxc1 21. Raxc1) 19... Nxf3 $19 {[%emt 0:05:30]} 20. Nxf3 {[%emt 0:00:06]} Qc7 {[%emt 0:06:24][%cal Og7g5] White must now prevent ...g5!} 21. Bd3 {[%emt 0:02:54] [#]} g5 $1 {[%emt 0:08:22]} 22. Nxg5 {[%emt 0:01:09]} (22. Qg3 $142 g4 23. Ng5) 22... Bxg5 {[%emt 0:00:05]} 23. Qxg5 {[%emt 0:00:04]} Ne7 {[%emt 0:00:04]} 24. Qg3 {[%emt 0:15:12]} (24. Qh4 Qc3 25. Rd1 Bc6+ 26. Kf1 Qxa1 27. Qxe7+ Kxe7 28. Bg5+ Kd7 29. Rxa1) 24... Rg8 $2 {[%emt 0:04:33]} (24... h4 25. Qf3 Qc3) 25. Bg5 {[%emt 0:00:06]} h4 {[%emt 0:00:23]} ({Black should play} 25... f6 $17 26. exf6 Qxg3+ 27. hxg3 Rxg5 28. fxe7 Kxe7) 26. Qxh4 $11 {[%emt 0:01:01]} Qc3 {[%emt 0:01:01]} 27. Rad1 {[%emt 0:09:42]} Bc6+ {[%emt 0:02:17]} (27... Ba4 $15 28. Kf1 Nf5) 28. Kf1 {[%emt 0:01:14]} Nf5 {[%emt 0:05:21]} 29. Qf4 {[%emt 0:06:16]} Rd5 {[%emt 0:01:38]} 30. h4 {[%emt 0:00:00]} Bb5 {[%emt 0:01:10]} (30... Qxa3 31. Kg1 (31. Bxf5 exf5 32. Qxf5 Bd7 $11) 31... Qxb4 32. Bxf5 exf5 33. Kh2 $11) 31. Bxb5+ {[%emt 0:00:00]} Rxb5 {[%emt 0:00:01]} 32. Rc1 {[%emt 0:00:00][%cal Bd1c1,Bc1c4,Bc4d4][%mdl 32]} Qh3+ {[%emt 0:00:18]} 33. Ke2 {[%emt 0:00:00]} Kd7 {[%emt 0:02:08] Inhibits Rc8.} 34. Red1 $2 {[%emt 0:01:28]} (34. Rc4 $1 $15 Rc8 35. Rxc8 Kxc8 36. Rc1+ Kb8 37. Bd8) 34... Qg2 $4 {[%emt 0:01:30][%mdl 8192] [#]} (34... Qxa3 $19 {avoids the disaster. Strongly threatening ...Qa6.} 35. Rxd4+ Nxd4+ 36. Qxd4+ Rd5) 35. Rc4 $1 $18 {[%emt 0:00:36] aiming for Rcxd4+. The board is on fire.} Rc8 {[%emt 0:00:48]} (35... Rd5 $2 36. Rdc1 Ra8 37. h5) 36. Rdxd4+ {[%emt 0:00:32]} (36. Rcxd4+ $18 Nxd4+ 37. Rxd4+ Kc7 38. Qxf7+ Kb8 39. Qxe6) 36... Nxd4+ $2 {[%emt 0:00:17]} (36... Rd5 $16 {was called for.} 37. Rxd5+ Qxd5 38. Rxc8 Kxc8) 37. Rxd4+ {[%emt 0:00:05]} Kc7 {[%emt 0:00:08]} 38. Qxf7+ {[%emt 0:00:22]} (38. Rc4+ $142 Kb8 39. Rxc8+ Kxc8 40. Qc4+ (40. Qd4 $2 Rd5 $19) 40... Qc6 41. Qxc6+ bxc6 42. Bf6) 38... Kb8 {[%emt 0:00:01]} 39. Qxe6 {[%emt 0:00:20] Active counter play!} a6 $2 {[%emt 0:00:59]} (39... Rc2+ $16 40. Bd2 Rxd2+ 41. Kxd2 Qxf2+ 42. Kd3 Qf3+ 43. Kc2 a6 44. Qg8+ Ka7) 40. Qd6+ {[%emt 0:01:14]} (40. a4 $142) 40... Ka8 {[%emt 0:00:12]} 41. Be3 {[%emt 0:06:37]} Qh1 $2 {[%emt 0:12:17]} (41... Rc2+ 42. Kd3 Rc8) 42. a4 {[%emt 0:03:51][%cal Od4c4] Rc4! is the strong threat.} Rc2+ {[%emt 0:02:16]} 43. Bd2 {[%emt 0:00:18] White used his chance.  Weighted Error Value: White=0.74/Black=0.57} 1-0

[Event "13th Dolomiti-Forni di Sopra-A 2022"]
[Site "Forni di Sopra"]
[Date "2022.06.15"]
[Round "5.7"]
[White "Molina, Fabrizio"]
[Black "Cappelletto, Joshuaede"]
[Result "1/2-1/2"]
[ECO "A36"]
[WhiteElo "2124"]
[BlackElo "2276"]
[Annotator "NA RC"]
[PlyCount "76"]
[EventDate "2022.06.13"]
[EventType "swiss"]
[EventCountry "ITA"]
[SourceTitle "playchess.com"]
[Source "ChessBase"]
[SourceQuality "1"]
[TimeControl "40/5400+30:1800+30"]

1. c4 {[%emt 0:00:03]} c5 {[%emt 0:01:01]} 2. Nc3 {[%emt 0:00:46]} Nc6 {[%emt 0:00:48]} 3. g3 {[%emt 0:00:08]} g6 {[%emt 0:00:41]} 4. Bg2 {[%emt 0:00:07]} Bg7 {[%emt 0:00:05]} 5. d3 {[%emt 0:00:19]} d6 {[%emt 0:00:18]} 6. e4 {[%emt 0:00:05]} e6 {[%emt 0:01:33]} 7. Nge2 {[%emt 0:00:13]} Nge7 {[%emt 0:00:07]} 8. O-O {[%emt 0:00:16]} O-O {[%emt 0:02:17]} 9. Be3 {[%emt 0:00:53]} Nd4 {[%emt 0:01:16]} 10. Qd2 {[%emt 0:00:22]} Rb8 {[%emt 0:11:03]} 11. Rab1 {[%emt 0:07:01]} Nec6 {[%emt 0:08:15]} 12. f4 {[%emt 0:04:01]} a6 {[%emt 0:05:14]} 13. Kh1 {[%emt 0:07:39]} b5 {[%emt 0:12:10]} 14. Bg1 {[%emt 0:03:25]} Qa5 {[%emt 0:09:52]} 15. e5 {[%emt 0:09:37]} dxe5 {[%emt 0:07:54]} 16. fxe5 {[%emt 0:08:27]} Nxe5 {[%emt 0:08:26]} 17. b4 {[%emt 0:09:10]} Qd8 {[%emt 0:07:54]} 18. bxc5 {[%emt 0:05:00]} Nxe2 {[%emt 0:02:08]} 19. Qxe2 {[%emt 0:13:26]} Qxd3 {[%emt 0:00:13]} 20. Qxd3 {[%emt 0:02:44]} Nxd3 {[%emt 0:00:03]} 21. cxb5 {[%emt 0:00:16]} Bxc3 {[%emt 0:02:30]} 22. Rb3 {[%emt 0:05:26]} axb5 {[%emt 0:06:18]} 23. Rxc3 {[%emt 0:00:25]} Nb4 {[%emt 0:00:04]} 24. c6 {[%emt 0:02:55]} Ra8 {[%emt 0:00:30]} 25. Rb3 {[%emt 0:04:00]} Nd5 {[%emt 0:00:06]} 26. Rd1 {[%emt 0:01:53]} Rxa2 {[%emt 0:01:34]} 27. Bd4 {[%emt 0:04:54]} Rc2 {[%emt 0:01:28]} 28. Bxd5 {[%emt 0:03:15]} exd5 {[%emt 0:00:04]} 29. Rc3 {[%emt 0:00:07]} Rxc3 {[%emt 0:02:45]} 30. Bxc3 {[%emt 0:00:02]} Bf5 {[%emt 0:03:12]} 31. Kg1 {[%emt 0:01:09]} Be4 {[%emt 0:00:23]} 32. Bf6 {[%emt 0:02:10]} Rc8 {[%emt 0:00:39]} 33. Rc1 {[%emt 0:00:12]} Kf8 {[%emt 0:00:13]} 34. Kf2 {[%emt 0:01:11]} d4 {[%emt 0:03:09]} 35. c7 {[%emt 0:00:28]} d3 {[%emt 0:01:40]} 36. Ke3 {[%emt 0:00:02]} Bf5 {[%emt 0:00:02]} 37. Rc5 {[%emt 0:01:29]} b4 {[%emt 0:00:15]} 38. Rd5 {[%emt 0:04:44]} Re8+ {[%emt 0:03:20]} 1/2-1/2

[Event "13th Dolomiti-Forni di Sopra-A 2022"]
[Site "Forni di Sopra"]
[Date "2022.06.15"]
[Round "5.8"]
[White "Higatsberger, Michael"]
[Black "Podetti, Davide"]
[Result "1/2-1/2"]
[ECO "C45"]
[WhiteElo "2046"]
[BlackElo "2238"]
[Annotator "NA RC"]
[PlyCount "57"]
[EventDate "2022.06.13"]
[EventType "swiss"]
[EventCountry "ITA"]
[SourceTitle "playchess.com"]
[Source "ChessBase"]
[SourceQuality "1"]
[TimeControl "40/5400+30:1800+30"]

1. e4 {[%emt 0:00:02]} e5 {[%emt 0:00:07]} 2. Nf3 {[%emt 0:00:06]} Nc6 {[%emt 0:00:03]} 3. d4 {[%emt 0:00:06]} exd4 {[%emt 0:00:08]} 4. Nxd4 {[%emt 0:00:05]} Nf6 {[%emt 0:00:11]} 5. Nxc6 {[%emt 0:00:14]} bxc6 {[%emt 0:00:04]} 6. e5 {[%emt 0:00:08]} Qe7 {[%emt 0:00:08]} 7. Qe2 {[%emt 0:00:06]} Nd5 {[%emt 0:00:10]} 8. h4 {[%emt 0:00:06]} Qe6 {[%emt 0:00:15]} 9. Nd2 {[%emt 0:00:15]} a5 {[%emt 0:00:14]} 10. c4 {[%emt 0:01:55]} Nb6 {[%emt 0:00:43]} 11. b3 {[%emt 0:17:32]} a4 {[%emt 0:20:16]} 12. Bb2 {[%emt 0:00:43]} axb3 {[%emt 0:00:34]} 13. axb3 {[%emt 0:00:07]} Rxa1+ {[%emt 0:00:14]} 14. Bxa1 {[%emt 0:00:05]} Bb4 {[%emt 0:00:07]} 15. Rh3 {[%emt 0:12:11]} Bb7 {[%emt 0:04:24]} 16. Bc3 {[%emt 0:13:32]} Bxc3 {[%emt 0:01:22]} 17. Rxc3 {[%emt 0:00:06]} c5 {[%emt 0:00:13]} 18. Ne4 {[%emt 0:02:15]} Bxe4 {[%emt 0:06:58]} 19. Qxe4 {[%emt 0:00:06]} O-O {[%emt 0:00:43]} 20. Bd3 {[%emt 0:05:49]} g6 {[%emt 0:02:01]} 21. Bc2 {[%emt 0:05:01]} Re8 {[%emt 0:00:54]} 22. Re3 {[%emt 0:00:17]} d6 {[%emt 0:09:06]} 23. exd6 {[%emt 0:04:47]} Qxe4 {[%emt 0:00:10]} 24. Rxe4 {[%emt 0:00:53]} Rxe4+ {[%emt 0:00:05]} 25. Bxe4 {[%emt 0:00:07]} cxd6 {[%emt 0:00:02]} 26. f4 {[%emt 0:05:16]} f5 {[%emt 0:02:59]} 27. Bc6 {[%emt 0:00:59]} Kf7 {[%emt 0:00:32]} 28. Kd2 {[%emt 0:00:14]} h6 {[%emt 0:01:50]} 29. Kd3 {[%emt 0:03:26]} 1/2-1/2

[Event "13th Dolomiti-Forni di Sopra-A 2022"]
[Site "Forni di Sopra"]
[Date "2022.06.15"]
[Round "5.10"]
[White "Harshita Guddanti"]
[Black "Kozlovic, Jernej"]
[Result "1/2-1/2"]
[ECO "B11"]
[WhiteElo "2208"]
[BlackElo "2005"]
[Annotator "TA"]
[PlyCount "90"]
[EventDate "2022.06.13"]
[EventType "swiss"]
[EventCountry "ITA"]
[SourceTitle "playchess.com"]
[Source "ChessBase"]
[SourceQuality "1"]
[TimeControl "40/5400+30:1800+30"]

{[%evp 12,90,0,0,6,11,25,28,27,-15,-21,-19,-25,-39,22,14,45,3,8,12,52,39,33,33,33,29,31,18,11,-20,-24,-17,50,39,46,-64,109,88,88,91,103,87,117,110,121,115,118,116,144,143,137,102,107,104,113,98,108,104,112,33,50,0,0,0,2,0,14,0,20,20,20,20,22,14,14,0,0,0,0,0,0]} 1. e4 {[%emt 0:00:24]} c6 {[%emt 0:00:14]} 2. Nc3 {[%emt 0:00:22]} d5 {[%emt 0:00:17]} 3. Nf3 {[%emt 0:00:07]} Bg4 {[%emt 0:00:07]} 4. h3 {[%emt 0:00:36]} Bxf3 {[%emt 0:00:07]} 5. Qxf3 {[%emt 0:00:05]} e6 {[%emt 0:00:19]} 6. d3 {[%emt 0:00:24]} Nd7 {[%emt 0:02:07]} 7. Bd2 {[%emt 0:00:38]} d4 {[%emt 0:01:33] 7...g6 is a critical line. B11: Caro-Kann: Two Knights Variation.} 8. Ne2 {[%emt 0:02:10][%cal Bc3e2,Be2g3,Bg3h5][%mdl 32]} c5 {[%emt 0:02:03]} 9. g4 {[%emt 0:01:44]} Bd6 {[%emt 0:00:55] White has an edge.} 10. Ng3 {[%emt 0:02:35] [#]} Ne7 $146 {[%emt 0:02:49]} ({Predecessor:} 10... Qf6 11. Qe2 O-O-O 12. Bg2 g6 13. O-O-O e5 14. h4 Qe6 15. Kb1 Ne7 16. Bh3 Bc7 {1-0 (51) Nguyen,K (2143)-Bekedam,T (2004) Assen 2017}) 11. h4 {[%emt 0:17:40]} Qc7 {[%emt 0:08:03]} 12. Nh5 {[%emt 0:04:45]} Be5 {[%emt 0:03:52]} ({Black should try} 12... O-O $1 $15) 13. g5 $11 {[%emt 0:13:56]} Rf8 {[%emt 0:18:32]} 14. Qg4 {[%emt 0:03:35]} g6 {[%emt 0:00:55]} 15. Nf4 {[%emt 0:03:54]} Bxf4 {[%emt 0:04:04]} 16. Bxf4 {[%emt 0:01:41]} e5 {[%emt 0:01:04]} 17. Bd2 {[%emt 0:01:51]} f5 {[%emt 0:00:46]} 18. gxf6 {[%emt 0:01:19]} Nxf6 {[%emt 0:03:12]} 19. Qe6 {[%emt 0:04:39]} Nh5 {[%emt 0:04:54]} 20. c3 {[%emt 0:09:11]} Rf6 {[%emt 0:01:59]} 21. Qc4 {[%emt 0:01:57]} O-O-O {[%emt 0:05:52]} (21... Qb6 $11) 22. Bg5 $14 {[%emt 0:02:45]} Rb6 {[%emt 0:11:58]} 23. Qf7 {[%emt 0:02:23]} (23. b4 $14 dxc3 24. bxc5) 23... Nc6 $2 {[%emt 0:02:56]} (23... h6 $1 $15 24. Bxh6 (24. Qxe7 hxg5 25. Qxc7+ Kxc7 $17) (24. Bxe7 Rf6 $15) 24... Rxb2) 24. Qxc7+ {[%emt 0:04:26]} Kxc7 {[%emt 0:00:07]} 25. Bxd8+ {[%emt 0:00:03]} Kxd8 {[%emt 0:00:05]} 26. O-O-O {[%emt 0:04:56]} h6 {[%emt 0:02:04]} 27. Rd2 {[%emt 0:04:56]} Ke7 {[%emt 0:03:32]} 28. Be2 {[%emt 0:01:25] [#] Threatens to win with Bxh5.} Nf4 {[%emt 0:00:24]} 29. Bd1 {[%emt 0:00:09]} Nd8 {[%emt 0:03:11]} 30. Bb3 {[%emt 0:01:40]} Rd6 {[%emt 0:00:32]} 31. Bd5 {[%emt 0:02:30]} Nxd5 {[%emt 0:06:14]} 32. exd5 {[%emt 0:00:05]} Rxd5 $16 {[%emt 0:00:05][%mdl 4096] Endgame KRR-KRN} 33. Re2 {[%emt 0:04:35]} Kf6 {[%emt 0:00:16]} 34. Kc2 {[%emt 0:01:47]} Rd6 {[%emt 0:02:10]} 35. cxd4 {[%emt 0:00:44]} (35. c4 $16) 35... cxd4 $14 {[%emt 0:02:27]} 36. Re4 {[%emt 0:00:44]} (36. Rhe1 $14) 36... Ne6 $11 {[%emt 0:00:33] The position is equal.} 37. Rhe1 {[%emt 0:00:54]} Rd5 {[%emt 0:00:05]} 38. b4 {[%emt 0:00:07]} Nf4 {[%emt 0:00:38]} 39. Kd2 {[%emt 0:00:58]} a5 {[%emt 0:00:13]} 40. Rb1 {[%emt 0:00:42]} axb4 {[%emt 0:01:18]} 41. Rxb4 {[%emt 0:30:17]} Ra5 {[%emt 0:30:07]} 42. a4 {[%emt 0:00:00]} Nd5 {[%emt 0:00:00]} 43. Rxb7 {[%emt 0:00:00] [#] Strongly threatening Rb5.} Rxa4 {[%emt 0:00:00]} 44. Rb8 {[%emt 0:00:00]} Ra2+ {[%emt 0:00:00]} 45. Kc1 {[%emt 0:00:00]} Nc3 {[%emt 0:10:21] White really could win this.  Weighted Error Value: White=0.17 (very precise) /Black=0.19 (very precise)} 1/2-1/2

[Event "13th Dolomiti-Forni di Sopra-A 2022"]
[Site "Forni di Sopra"]
[Date "2022.06.15"]
[Round "5.11"]
[White "Pozzari, Simone"]
[Black "Vezzosi, Paolo"]
[Result "0-1"]
[ECO "B19"]
[WhiteElo "2184"]
[BlackElo "2225"]
[Annotator "NA RC"]
[PlyCount "99"]
[EventDate "2022.06.13"]
[EventType "swiss"]
[EventCountry "ITA"]
[SourceTitle "playchess.com"]
[Source "ChessBase"]
[SourceQuality "1"]
[TimeControl "40/5400+30:1800+30"]

1. e4 {[%emt 0:00:04]} c6 {[%emt 0:00:19]} 2. d4 {[%emt 0:00:07]} d5 {[%emt 0:00:03]} 3. Nc3 {[%emt 0:00:32]} dxe4 {[%emt 0:00:05]} 4. Nxe4 {[%emt 0:00:03]} Bf5 {[%emt 0:00:06]} 5. Ng3 {[%emt 0:00:04]} Bg6 {[%emt 0:00:10]} 6. h4 {[%emt 0:00:37]} h6 {[%emt 0:00:15]} 7. Nf3 {[%emt 0:00:11]} Nd7 {[%emt 0:00:04]} 8. h5 {[%emt 0:00:18]} Bh7 {[%emt 0:00:05]} 9. Bd3 {[%emt 0:00:04]} Bxd3 {[%emt 0:00:06]} 10. Qxd3 {[%emt 0:00:04]} e6 {[%emt 0:00:08]} 11. Bd2 {[%emt 0:00:59]} Ngf6 {[%emt 0:00:09]} 12. O-O-O {[%emt 0:01:39]} Qc7 {[%emt 0:04:02]} 13. Ne4 {[%emt 0:00:39]} O-O-O {[%emt 0:01:02]} 14. g3 {[%emt 0:06:03]} Nc5 {[%emt 0:01:24]} 15. Nxc5 {[%emt 0:01:40]} Bxc5 16. Qc4 {[%emt 0:20:26]} Bb6 {[%emt 0:08:18]} 17. Rh4 {[%emt 0:10:25]} Rd5 {[%emt 0:04:29]} 18. Bf4 {[%emt 0:08:20]} Qe7 {[%emt 0:01:25]} 19. Ne5 {[%emt 0:04:10]} Rhd8 {[%emt 0:03:15]} 20. Nxc6 {[%emt 0:14:05]} bxc6 {[%emt 0:00:38]} 21. Qxc6+ {[%emt 0:01:40]} Bc7 {[%emt 0:00:05]} 22. Qa6+ {[%emt 0:06:59]} Kb8 {[%emt 0:02:32]} 23. Rd3 {[%emt 0:05:20]} Bxf4+ {[%emt 0:03:10]} 24. Rxf4 {[%emt 0:00:05]} Ka8 {[%emt 0:02:01]} 25. Qc6+ {[%emt 0:08:18]} Qb7 {[%emt 0:00:33]} 26. Qxb7+ {[%emt 0:00:06]} Kxb7 {[%emt 0:00:06]} 27. g4 {[%emt 0:00:04]} Rg5 {[%emt 0:06:29]} 28. f3 {[%emt 0:00:37]} Ka8 {[%emt 0:00:38]} 29. Kd2 {[%emt 0:02:14]} Ra5 {[%emt 0:03:34]} 30. a3 {[%emt 0:00:27]} Rc8 {[%emt 0:00:22]} 31. b4 {[%emt 0:01:48]} Ra6 {[%emt 0:00:29]} 32. b5 {[%emt 0:03:19]} Ra4 {[%emt 0:00:57]} 33. Kc1 {[%emt 0:02:10]} Rac4 {[%emt 0:00:53]} 34. Rd2 {[%emt 0:00:08]} Rb8 {[%emt 0:01:11]} 35. Rd3 {[%emt 0:01:11]} Rxb5 {[%emt 0:00:29]} 36. Kd2 {[%emt 0:00:04]} Rb2 {[%emt 0:00:13]} 37. Rc3 {[%emt 0:00:57]} Rxc3 {[%emt 0:00:20]} 38. Kxc3 {[%emt 0:00:02]} Nd5+ {[%emt 0:00:15]} 39. Kxb2 {[%emt 0:00:05]} Nxf4 {[%emt 0:00:05]} 40. c4 {[%emt 0:01:28]} Ne2 {[%emt 0:01:22]} 41. d5 {[%emt 0:30:05]} exd5 {[%emt 0:30:06]} 42. cxd5 {[%emt 0:00:05]} Kb7 {[%emt 0:00:45]} 43. Kb3 {[%emt 0:00:14]} Kc7 {[%emt 0:01:30]} 44. Kc4 {[%emt 0:00:05]} Kd6 {[%emt 0:00:08]} 45. Kb5 {[%emt 0:00:09]} Nd4+ {[%emt 0:02:14]} 46. Ka6 {[%emt 0:00:06]} Nxf3 {[%emt 0:00:05]} 47. Kxa7 {[%emt 0:00:33]} Nd4 {[%emt 0:00:14]} 48. Kb6 {[%emt 0:00:36]} Kxd5 {[%emt 0:00:23]} 49. a4 {[%emt 0:00:19]} Nb3 {[%emt 0:01:22]} 50. Kb5 {[%emt 0:00:04]} 0-1

[Event "13th Dolomiti-Forni di Sopra-A 2022"]
[Site "Forni di Sopra"]
[Date "2022.06.15"]
[Round "5.12"]
[White "Candian, Lorenzo"]
[Black "Vezzani, Stefano"]
[Result "0-1"]
[ECO "C01"]
[WhiteElo "2048"]
[BlackElo "2135"]
[Annotator "NA RC"]
[PlyCount "88"]
[EventDate "2022.06.13"]
[EventType "swiss"]
[EventCountry "ITA"]
[SourceTitle "playchess.com"]
[Source "ChessBase"]
[SourceQuality "1"]
[TimeControl "40/5400+30:1800+30"]

1. e4 {[%emt 0:00:37]} e6 {[%emt 0:00:20]} 2. d4 {[%emt 0:00:08]} d5 {[%emt 0:00:07]} 3. Bd3 {[%emt 0:00:12]} Nc6 {[%emt 0:01:59]} 4. c3 {[%emt 0:01:26]} dxe4 {[%emt 0:04:24]} 5. Bxe4 {[%emt 0:00:02]} Nf6 {[%emt 0:00:08]} 6. Bg5 {[%emt 0:04:58]} Be7 {[%emt 0:00:36]} 7. Bxf6 {[%emt 0:00:36]} Bxf6 {[%emt 0:00:38]} 8. Nf3 {[%emt 0:00:40]} Ne7 {[%emt 0:05:39]} 9. Qc2 {[%emt 0:05:06]} h6 {[%emt 0:02:53]} 10. Nbd2 c6 {[%emt 0:01:14]} 11. Nc4 {[%emt 0:10:46]} Qc7 12. Nce5 {[%emt 0:04:10]} b6 {[%emt 0:03:28]} 13. O-O {[%emt 0:19:00]} Bb7 {[%emt 0:00:21]} 14. Rae1 {[%emt 0:04:53]} Kf8 {[%emt 0:06:49]} 15. Ng4 {[%emt 0:01:22]} h5 {[%emt 0:04:33]} 16. Nxf6 {[%emt 0:06:34]} gxf6 {[%emt 0:00:11]} 17. Qc1 {[%emt 0:01:07]} Rd8 {[%emt 0:02:06]} 18. c4 {[%emt 0:09:27]} h4 {[%emt 0:08:43]} 19. Qe3 {[%emt 0:06:07]} Kg7 {[%emt 0:06:00]} 20. Rd1 {[%emt 0:05:07]} Rh5 {[%emt 0:01:37]} 21. Rfe1 {[%emt 0:02:18]} Rg8 {[%emt 0:06:02]} 22. Nd2 {[%emt 0:09:21]} Kf8 {[%emt 0:05:54]} 23. Bf3 {[%emt 0:01:41]} Rhh8 {[%emt 0:02:43]} 24. Ne4 {[%emt 0:00:38]} Rg6 {[%emt 0:04:10]} 25. Nc3 Nf5 {[%emt 0:05:33]} 26. Qd3 {[%emt 0:03:27]} c5 {[%emt 0:09:49]} 27. Nb5 {[%emt 0:01:01]} Qb8 {[%emt 0:00:06]} 28. d5 {[%emt 0:00:17]} h3 {[%emt 0:03:45]} 29. g3 {[%emt 0:00:40]} Nh4 {[%emt 0:01:21]} 30. Bh1 {[%emt 0:00:15]} Ng2 {[%emt 0:06:34]} 31. Bxg2 {[%emt 0:02:14]} hxg2 32. h4 {[%emt 0:00:47]} e5 {[%emt 0:02:34]} 33. d6 {[%emt 0:00:38]} Kg7 {[%emt 0:01:16]} 34. Qf5 {[%emt 0:00:37]} Rg5 {[%emt 0:01:20]} 35. Qd3 {[%emt 0:00:37]} Rgh5 {[%emt 0:01:51]} 36. Rd2 {[%emt 0:00:20]} Qd8 {[%emt 0:01:38]} 37. d7 {[%emt 0:00:32]} f5 {[%emt 0:00:18]} 38. Rxe5 {[%emt 0:00:25]} Rxh4 {[%emt 0:00:19]} 39. gxh4 {[%emt 0:00:04]} Qxh4 {[%emt 0:00:20]} 40. Qg3+ {[%emt 0:00:28]} Qxg3 {[%emt 0:00:08]} 41. fxg3 {[%emt 0:30:02]} Rh1+ {[%emt 0:30:10]} 42. Kf2 {[%emt 0:00:01]} g1=Q+ {[%emt 0:03:53]} 43. Ke2 {[%emt 0:03:19]} Qf1+ {[%emt 0:00:00]} 44. Ke3 {[%emt 0:00:00]} Qf3# {[%emt 0:00:00]} 0-1